fUSD/lending_fUSD_20251123
["ID","MTS","AMOUNT","RATE_DAILY","PERIOD"]
[394758333,1763929870142,-500.0,0.00039178,8]
[394758334,1763929870151,-500.0,0.00039178,8]
[394758335,1763929870161,-500.0,0.00039178,8]
[394758336,1763929870170,-500.0,0.00039178,8]
[394758337,1763929870179,-538.0,0.00039178,8]
[394758338,1763929870189,-168.961398,0.00039178,8]
[394758339,1763929870198,-500.0,0.00039178,8]
[394758340,1763929870207,-500.0,0.00039178,8]
[394758341,1763929870217,-500.0,0.00039178,8]
[394758342,1763929870226,-500.0,0.00039178,8]
[394758343,1763929870236,-500.0,0.00039178,8]
[394758344,1763929870245,-764.19,0.00039178,8]
[394758345,1763929870255,-500.0,0.00039178,8]
[394758346,1763929870264,-500.0,0.00039178,8]
[394758347,1763929870274,-500.0,0.00039178,8]
[394758348,1763929870283,-500.0,0.00039178,8]
[394758349,1763929870293,-317.22644781,0.00039178,8]
[394758350,1763929870302,-500.0,0.00039178,8]
[394758351,1763929870311,-500.0,0.00039178,8]
[394758352,1763929870322,-539.98864398,0.00039178,8]
[394758353,1763929870331,-517.36111586,0.00039178,8]
[394758354,1763929870341,-771.84,0.00039178,8]
[394758355,1763929870351,-500.0,0.00039178,8]
[394758356,1763929870360,-593.44932586,0.00039178,8]
[394758357,1763929870370,-500.0,0.00039178,8]
[394758358,1763929870379,-500.0,0.00039178,8]
[394758359,1763929870389,-500.0,0.00039178,8]
[394758360,1763929870398,-500.0,0.00039178,8]
[394758361,1763929870408,-500.0,0.00039178,8]
[394758362,1763929870417,-830.13,0.00039178,8]
[394758363,1763929870427,-1259.23,0.00039178,8]
[394758364,1763929870436,-545.01,0.00039178,8]
[394758365,1763929870446,-500.0,0.00039178,8]
[394758366,1763929870456,-500.0,0.00039178,8]
[394758367,1763929870465,-513.17,0.00039178,8]
[394758368,1763929870474,-500.0,0.00039178,8]
[394758369,1763929870484,-642.12874789,0.00039178,8]
[394758370,1763929870493,-500.0,0.00039178,8]
[394758371,1763929870502,-535.18,0.00039178,8]
[394758372,1763929870511,-500.0,0.00039178,8]
[394758373,1763929870520,-500.0,0.00039178,8]
[394758374,1763929870530,-500.0,0.00039178,8]
[394758375,1763929870539,-500.0,0.00039178,8]
[394758376,1763929870548,-500.0,0.00039178,8]
[394758377,1763929870558,-830.78,0.00039178,8]
[394758378,1763929870567,-6293.43,0.00039178,8]
[394758379,1763929870576,-500.0,0.00039178,8]
[394758380,1763929870585,-500.0,0.00039178,8]
[394758381,1763929870595,-500.0,0.00039178,8]
[394758382,1763929870604,-591.35,0.00039178,8]
[394758383,1763929870613,-500.0,0.00039178,8]
[394758384,1763929870625,-500.0,0.00039178,8]
[394758385,1763929870635,-500.0,0.00039178,8]
[394758386,1763929870645,-1192.17,0.00039178,8]
[394758387,1763929870654,-500.0,0.00039178,8]
[394758388,1763929870663,-500.0,0.00039178,8]
[394758389,1763929870672,-500.0,0.00039178,8]
[394758390,1763929870681,-500.0,0.00039178,8]
[394758391,1763929870691,-500.0,0.00039178,8]
[394758392,1763929870702,-500.0,0.00039178,8]
[394758393,1763929870711,-471.77152186,0.00039178,8]
[394758394,1763929870721,-500.0,0.00039178,8]
[394758395,1763929870730,-896.91,0.00039178,8]
[394758396,1763929870739,-500.0,0.00039178,8]
[394758397,1763929870748,-694.55,0.00039178,8]
[394758398,1763929870758,-500.0,0.00039178,8]
[394758399,1763929870767,-500.0,0.00039178,8]
[394758400,1763929870776,-500.0,0.00039178,8]
[394758401,1763929870785,-500.0,0.00039178,8]
[394758402,1763929870794,-500.0,0.00039178,2]
[394758403,1763929870804,-500.0,0.00039178,8]
[394758404,1763929870814,-427.18992778,0.00039178,8]
[394758405,1763929870823,-715.66,0.00039178,8]
[394758406,1763929870832,-500.0,0.00039178,8]
[394758407,1763929870842,-1000.0,0.00039178,8]
[394758408,1763929870852,-1953.68,0.00039178,8]
[394758409,1763929870861,-698.87,0.00039178,8]
[394758410,1763929870871,-592.61,0.00039178,8]
[394758411,1763929870880,-587.71,0.00039178,8]
[394758412,1763929870890,-500.0,0.00039178,8]
[394758413,1763929870899,-373.04557805,0.00039178,8]
[394758414,1763929870909,-500.0,0.00039178,8]
[394758415,1763929870918,-500.0,0.00039178,8]
[394758416,1763929870928,-500.0,0.00039178,8]
[394758417,1763929870937,-500.0,0.00039178,8]
[394758418,1763929870947,-500.0,0.00039178,8]
[394758419,1763929870957,-1649.1,0.00039178,8]
[394758420,1763929870967,-192.8368405,0.00039178,8]
[394758421,1763929870976,-500.0,0.00039178,8]
[394758422,1763929870985,-500.0,0.00039178,8]
[394758423,1763929870994,-589.17,0.00039178,8]
[394758424,1763929871004,-500.0,0.00039178,8]
[394758425,1763929871014,-951.49,0.00039178,8]
[394758426,1763929871024,-500.0,0.00039178,8]
[394758427,1763929871033,-503.68,0.00039178,8]
[394758428,1763929871043,-500.0,0.00039178,8]
[394758429,1763929871052,-500.0,0.00039178,8]
[394758430,1763929871061,-500.0,0.00039178,8]
[394758431,1763929871071,-500.0,0.00039178,8]
[394758432,1763929871080,-500.0,0.00039178,8]
[394758433,1763929871090,-500.0,0.00039178,8]
[394758434,1763929871099,-500.0,0.00039178,8]
[394758435,1763929871108,-525.49,0.00039178,8]
[394758436,1763929871118,-500.0,0.00039178,8]
[394758437,1763929871127,-500.0,0.00039178,8]
[394758438,1763929871136,-500.0,0.00039178,8]
[394758439,1763929871145,-524.73,0.00039178,8]
[394758440,1763929871155,-500.0,0.00039178,8]
[394758441,1763929871164,-500.0,0.00039178,8]
[394758442,1763929871173,-575.69,0.00039178,8]
[394758443,1763929871182,-500.0,0.00039178,8]
[394758444,1763929871191,-500.0,0.00039178,8]
[394758445,1763929871200,-500.0,0.00039178,8]
[394758446,1763929871209,-500.0,0.00039178,8]
[394758447,1763929871219,-504.40608232,0.00039178,8]
[394758448,1763929871228,-500.0,0.00039178,8]
[394758449,1763929871237,-500.0,0.00039178,8]
[394758450,1763929871247,-182.38112458,0.00039178,8]
[394758451,1763929871256,-500.0,0.00039178,8]
[394758452,1763929871265,-500.0,0.00039178,8]
[394758453,1763929871274,-919.24,0.00039178,8]
[394758454,1763929871283,-500.0,0.00039178,8]
[394758455,1763929871292,-500.0,0.00039178,8]
[394758456,1763929871302,-829.73,0.00039178,8]
[394758457,1763929871312,-867.96,0.00039178,8]
[394758458,1763929871321,-759.86,0.00039178,8]
[394758459,1763929871331,-500.0,0.00039178,8]
[394758460,1763929871340,-600.0,0.00039178,30]
[394758461,1763929871349,-600.0,0.00039178,30]
[394758462,1763929871617,-276.16449601,0.000392,120]
[394758463,1763929871636,-426.78462315,0.000392,30]
[394758464,1763929871646,-1376.0,0.00039255,120]
[394758465,1763929871655,-1000.0,0.00039285,7]
[394758466,1763929871665,-150.0,0.00039314,30]
[394758467,1763929871674,-150.0,0.00039314,2]
[394758468,1763929871684,-500.0,0.00039314,2]
[394758469,1763929871694,-500.0,0.00039314,2]
[394758470,1763929871705,-200.0,0.00039314,2]
[394758471,1763929871714,-418.0,0.00039314,2]
[394758472,1763929871724,-1211.3,0.00039342,2]
[394758473,1763929871734,-1211.3,0.00039342,2]
[394758474,1763929871743,-1211.3,0.00039342,2]
[394758475,1763929871753,-150.0,0.0003937,2]
[394758476,1763929871762,-150.0,0.0003937,2]
[394758477,1763929871772,-150.0,0.0003937,2]
[394758478,1763929871781,-150.0,0.0003937,2]
[394758479,1763929871791,-150.0,0.0003937,2]
[394758480,1763929871802,-551.04,0.0003937,2]
[394758481,1763929871812,-150.0,0.0003937,2]
[394758482,1763929871821,-417.4,0.0003937,2]
[394758483,1763929871831,-177.6,0.0003937,2]
[394758484,1763929871841,-169.71,0.0003937,2]
[394758485,1763929871851,-1211.3,0.0003937,2]
[394758486,1763929871861,-653.0,0.00039383,7]
[394758487,1763929871871,-500.0,0.00039395,5]
[394758488,1763929871880,-940.0,0.00039414,2]
[394758489,1763929871889,-940.0,0.00039438,2]
[394758490,1763929871907,-150.0,0.00039447,2]
[394758491,1763929871916,-200.0,0.00039451,30]
[394758492,1763929871926,-500.0,0.00039451,2]
[394758493,1763929871936,-500.0,0.00039451,2]
[394758494,1763929871946,-418.0,0.00039451,2]
[394758495,1763929871955,-27988.35984218,0.00039452,21]
[394758496,1763929871964,-500.0,0.00039452,8]
[394758497,1763929871974,-547.44,0.00039452,8]
[394758498,1763929871983,-500.0,0.00039452,8]
[394758499,1763929871993,-537.05,0.00039452,8]
[394758500,1763929872003,-500.0,0.00039452,8]
[394758501,1763929872012,-500.0,0.00039452,8]
[394758502,1763929872022,-700.0,0.00039452,120]
[394758503,1763929872032,-500.0,0.00039452,8]
[394758504,1763929872043,-500.0,0.00039452,8]
[394758505,1763929872053,-500.0,0.00039452,8]
[394758506,1763929872064,-500.0,0.00039452,8]
[394758507,1763929872074,-500.0,0.00039452,8]
[394758508,1763929872084,-500.0,0.00039452,8]
[394758509,1763929872094,-223.09915567,0.00039452,8]
[394758510,1763929872103,-500.0,0.00039452,8]
[394758511,1763929872113,-500.0,0.00039452,8]
[394758512,1763929872122,-500.0,0.00039452,8]
[394758513,1763929872131,-500.0,0.00039452,8]
[394758514,1763929872140,-764.13,0.00039452,8]
[394758515,1763929872149,-500.0,0.00039452,8]
[394758516,1763929872159,-500.0,0.00039452,8]
[394758517,1763929872168,-620.69,0.00039452,8]
[394758518,1763929872176,-500.0,0.00039452,8]
[394758519,1763929872186,-500.0,0.00039452,8]
[394758520,1763929872197,-500.0,0.00039452,8]
[394758521,1763929872206,-500.0,0.00039452,8]
[394758522,1763929872215,-500.0,0.00039452,8]
[394758523,1763929872224,-500.0,0.00039452,8]
[394758524,1763929872233,-500.0,0.00039452,8]
[394758525,1763929872243,-507.5785854,0.00039452,8]
[394758526,1763929872251,-500.0,0.00039452,8]
[394758527,1763929872260,-500.0,0.00039452,8]
[394758528,1763929872270,-500.0,0.00039452,8]
[394758529,1763929872279,-500.0,0.00039452,8]
[394758530,1763929872287,-500.0,0.00039452,8]
[394758531,1763929872296,-500.0,0.00039452,8]
[394758532,1763929872305,-500.0,0.00039452,8]
[394758533,1763929872314,-500.0,0.00039452,8]
[394758534,1763929872324,-285.3968551,0.00039452,8]
[394758535,1763929872333,-734.1,0.00039452,8]
[394758536,1763929872343,-502.57,0.00039452,8]
[394758537,1763929872352,-500.0,0.00039452,8]
[394758538,1763929872361,-500.0,0.00039452,8]
[394758539,1763929872370,-500.0,0.00039452,8]
[394758540,1763929872379,-500.0,0.00039452,8]
[394758541,1763929872388,-500.0,0.00039452,8]
[394758542,1763929872397,-655.26,0.00039452,8]
[394758543,1763929872407,-532.47,0.00039452,8]
[394758544,1763929872418,-500.0,0.00039452,8]
[394758545,1763929872427,-500.0,0.00039452,8]
[394758546,1763929872436,-500.0,0.00039452,8]
[394758547,1763929872445,-500.0,0.00039452,8]
[394758548,1763929872454,-500.0,0.00039452,8]
[394758549,1763929872463,-500.0,0.00039452,8]
[394758550,1763929872473,-500.0,0.00039452,8]
[394758551,1763929872482,-500.0,0.00039452,8]
[394758552,1763929872492,-500.0,0.00039452,8]
[394758553,1763929872503,-500.0,0.00039452,8]
[394758554,1763929872512,-518.25,0.00039452,8]
[394758555,1763929872521,-629.02080452,0.00039452,8]
[394758556,1763929872531,-500.0,0.00039452,8]
[394758557,1763929872540,-1000.0,0.00039452,8]
[394758558,1763929872549,-1022.99,0.00039452,8]
[394758559,1763929872558,-500.0,0.00039452,8]
[394758560,1763929872568,-500.0,0.00039452,8]
[394758561,1763929872577,-903.62,0.00039452,8]
[394758562,1763929872586,-500.0,0.00039452,8]
[394758563,1763929872595,-500.0,0.00039452,8]
[394758564,1763929872604,-500.0,0.00039452,8]
[394758565,1763929872613,-500.0,0.00039452,8]
[394758566,1763929872624,-500.0,0.00039452,8]
[394758567,1763929872633,-506.26,0.00039452,8]
[394758568,1763929872643,-560.5,0.00039452,8]
[394758569,1763929872652,-580.95,0.00039452,8]
[394758570,1763929872663,-500.0,0.00039452,8]
[394758571,1763929872672,-500.0,0.00039452,8]
[394758572,1763929872681,-504.09259562,0.00039452,8]
[394758573,1763929872691,-500.0,0.00039452,8]
[394758574,1763929872702,-500.0,0.00039452,8]
[394758575,1763929872711,-500.0,0.00039452,8]
[394758576,1763929872720,-516.8,0.00039452,8]
[394758577,1763929872733,-500.0,0.00039452,8]
[394758578,1763929872743,-500.0,0.00039452,8]
[394758579,1763929872752,-500.0,0.00039452,8]
[394758580,1763929872761,-586.40942222,0.00039452,8]
[394758581,1763929872770,-500.0,0.00039452,8]
[394758582,1763929872779,-256.09888858,0.00039452,8]
[394758583,1763929872788,-500.0,0.00039452,8]
[394758584,1763929872798,-500.0,0.00039452,8]
[394758585,1763929872807,-500.0,0.00039452,8]
[394758586,1763929872816,-500.0,0.00039452,8]
[394758587,1763929872826,-500.0,0.00039452,8]
[394758588,1763929872835,-500.0,0.00039452,8]
[394758589,1763929872844,-500.0,0.00039452,8]
[394758590,1763929872853,-500.0,0.00039452,8]
[394758591,1763929872863,-529.7,0.00039452,8]
[394758592,1763929872872,-525.99,0.00039452,8]
[394758593,1763929872881,-500.0,0.00039452,8]
[394758594,1763929872891,-592.88,0.00039452,8]
[394758595,1763929872900,-539.32,0.00039452,8]
[394758596,1763929872911,-809.29,0.00039452,8]
[394758597,1763929872920,-500.0,0.00039452,8]
[394758598,1763929872929,-500.0,0.00039452,8]
[394758599,1763929872939,-568.18,0.00039452,8]
[394758600,1763929872949,-500.0,0.00039452,8]
[394758601,1763929872958,-500.0,0.00039452,8]
[394758602,1763929872968,-501.27,0.00039452,8]
[394758603,1763929872978,-500.0,0.00039452,8]
[394758604,1763929872987,-500.0,0.00039452,8]
[394758605,1763929872997,-204.52,0.00039452,30]
[394758606,1763929873006,-500.0,0.00039452,8]
[394758607,1763929873016,-500.0,0.00039452,8]
[394758608,1763929873025,-500.0,0.00039452,8]
[394758609,1763929873035,-500.0,0.00039452,8]
[394758610,1763929873045,-500.0,0.00039452,8]
[394758611,1763929873055,-500.0,0.00039452,8]
[394758612,1763929873065,-500.0,0.00039452,8]
[394758613,1763929873075,-549.96,0.00039452,8]
[394758614,1763929873084,-500.0,0.00039452,8]
[394758615,1763929873093,-500.0,0.00039452,8]
[394758616,1763929873103,-500.0,0.00039452,8]
[394758617,1763929873112,-500.0,0.00039452,8]
[394758618,1763929873121,-369.08980786,0.00039452,8]
[394758619,1763929873130,-500.0,0.00039452,8]
[394758620,1763929873139,-500.0,0.00039452,8]
[394758621,1763929873149,-639.91,0.00039452,8]
[394758622,1763929873158,-500.0,0.00039452,8]
[394758623,1763929873167,-584.27,0.00039452,8]
[394758624,1763929873177,-500.0,0.00039452,8]
[394758625,1763929873185,-702.21,0.00039452,8]
[394758626,1763929873195,-500.0,0.00039452,8]
[394758627,1763929873204,-500.0,0.00039452,8]
[394758628,1763929873214,-500.0,0.00039452,8]
[394758629,1763929873223,-592.73,0.00039452,8]
[394758630,1763929873232,-500.0,0.00039452,8]
[394758631,1763929873241,-500.0,0.00039452,8]
[394758632,1763929873250,-500.0,0.00039452,8]
[394758633,1763929873259,-500.0,0.00039452,8]
[394758634,1763929873268,-151.0,0.00039452,120]
[394758635,1763929873278,-673.92,0.00039452,8]
[394758636,1763929873287,-500.0,0.00039452,8]
[394758637,1763929873296,-500.0,0.00039452,8]
[394758638,1763929873305,-500.0,0.00039452,8]
[394758639,1763929873315,-500.0,0.00039452,8]
[394758640,1763929873324,-500.0,0.00039452,8]
[394758641,1763929873333,-500.0,0.00039452,8]
[394758642,1763929873343,-500.0,0.00039452,8]
[394758643,1763929873352,-709.69,0.00039452,8]
[394758644,1763929873361,-500.0,0.00039452,8]
[394758645,1763929873371,-500.0,0.00039452,8]
[394758646,1763929873381,-151.0,0.00039452,120]
[394758647,1763929873391,-793.62,0.00039452,8]
[394758648,1763929873400,-500.0,0.00039452,8]
[394758649,1763929873409,-500.0,0.00039452,8]
[394758650,1763929873419,-500.0,0.00039452,8]
[394758651,1763929873428,-500.0,0.00039452,8]
[394758652,1763929873438,-151.0,0.00039452,120]
[394758653,1763929873447,-500.0,0.00039452,8]
[394758654,1763929873456,-500.0,0.00039452,8]
[394758655,1763929873465,-500.0,0.00039452,8]
[394758656,1763929873474,-500.0,0.00039452,8]
[394758657,1763929873484,-500.0,0.00039452,8]
[394758658,1763929873493,-500.0,0.00039452,8]
[394758659,1763929873502,-500.0,0.00039452,8]
[394758660,1763929873511,-661.66,0.00039452,8]
[394758661,1763929873520,-500.0,0.00039452,8]
[394758662,1763929873529,-500.0,0.00039452,8]
[394758663,1763929873538,-500.0,0.00039452,8]
[394758664,1763929873547,-553.0,0.00039452,8]
[394758665,1763929873556,-500.0,0.00039452,8]
[394758666,1763929873565,-790.75,0.00039452,8]
[394758667,1763929873574,-500.0,0.00039452,8]
[394758668,1763929873583,-500.0,0.00039452,8]
[394758669,1763929873593,-422.43764113,0.00039452,8]
[394758670,1763929873602,-500.0,0.00039452,8]
[394758671,1763929873612,-500.0,0.00039452,8]
[394758672,1763929873623,-500.0,0.00039452,8]
[394758673,1763929873634,-500.0,0.00039452,8]
[394758674,1763929873644,-636.72,0.00039452,8]
[394758675,1763929873653,-500.0,0.00039452,8]
[394758676,1763929873663,-576.8,0.00039452,8]
[394758677,1763929873672,-549.64,0.00039452,8]
[394758678,1763929873682,-536.69108028,0.00039452,8]
[394758679,1763929873691,-1124.75,0.00039452,8]
[394758680,1763929873703,-500.0,0.00039452,8]
[394758681,1763929873712,-500.0,0.00039452,8]
[394758682,1763929873721,-500.0,0.00039452,8]
[394758683,1763929873731,-576.65,0.00039452,8]
[394758684,1763929873740,-500.0,0.00039452,8]
[394758685,1763929873750,-505.96,0.00039452,8]
[394758686,1763929873759,-505.6,0.00039452,8]
[394758687,1763929873768,-551.31714779,0.00039452,8]
[394758688,1763929873778,-500.0,0.00039452,8]
[394758689,1763929873787,-500.0,0.00039452,8]
[394758690,1763929873796,-500.0,0.00039452,8]
[394758691,1763929873805,-500.0,0.00039452,8]
[394758692,1763929873815,-498.73997389,0.00039452,8]
[394758693,1763929873824,-622.8,0.00039452,8]
[394758694,1763929873833,-500.0,0.00039452,8]
[394758695,1763929873843,-500.0,0.00039452,8]
[394758696,1763929873852,-500.0,0.00039452,8]
[394758697,1763929873861,-500.0,0.00039452,8]
[394758698,1763929873871,-847.47,0.00039452,8]
[394758699,1763929873880,-596.94,0.00039452,8]
[394758700,1763929873889,-500.0,0.00039452,8]
[394758701,1763929873899,-175.71809104,0.00039452,8]
[394758702,1763929873908,-191.99296322,0.00039452,8]
[394758703,1763929873918,-500.0,0.00039452,8]
[394758704,1763929873927,-500.0,0.00039452,8]
[394758705,1763929874001,-500.0,0.00039452,8]
[394758706,1763929874011,-500.0,0.00039452,8]
[394758707,1763929874020,-500.0,0.00039452,8]
[394758708,1763929874030,-500.0,0.00039452,8]
[394758709,1763929874039,-500.0,0.00039452,8]
[394758710,1763929874049,-500.0,0.00039452,8]
[394758711,1763929874057,-500.0,0.00039452,8]
[394758712,1763929874067,-500.0,0.00039452,8]
[394758713,1763929874076,-500.0,0.00039452,8]
[394758714,1763929874085,-238.23544758,0.00039452,8]
[394758715,1763929874094,-500.0,0.00039452,8]
[394758716,1763929874103,-500.0,0.00039452,8]
[394758717,1763929874112,-500.0,0.00039452,8]
[394758718,1763929874122,-500.0,0.00039452,2]
[394758719,1763929874131,-500.0,0.00039452,8]
[394758720,1763929874140,-500.0,0.00039452,8]
[394758721,1763929874149,-500.0,0.00039452,8]
[394758722,1763929874158,-500.0,0.00039452,8]
[394758723,1763929874168,-198.93202,0.00039452,120]
[394758724,1763929874179,-628.98,0.00039452,8]
[394758725,1763929874188,-676.65,0.00039452,8]
[394758726,1763929874199,-500.0,0.00039452,8]
[394758727,1763929874208,-899.770546,0.00039452,120]
[394758728,1763929874217,-899.770546,0.00039452,120]
[394758729,1763929874226,-500.0,0.00039452,8]
[394758730,1763929874236,-899.770546,0.00039452,120]
[394758731,1763929874247,-500.0,0.00039452,8]
[394758732,1763929874256,-500.0,0.00039452,8]
[394758733,1763929874265,-899.770546,0.00039452,120]
[394758734,1763929874274,-500.0,0.00039452,8]
[394758735,1763929874284,-500.0,0.00039452,8]
[394758736,1763929874293,-500.0,0.00039452,8]
[394758737,1763929874302,-564.03,0.00039452,8]
[394758738,1763929874312,-500.0,0.00039452,8]
[394758739,1763929874321,-590.89,0.00039452,8]
[394758740,1763929874330,-500.0,0.00039452,8]
[394758741,1763929874339,-500.0,0.00039452,8]
[394758742,1763929874349,-859.66,0.00039452,8]
[394758743,1763929874358,-500.0,0.00039452,8]
[394758744,1763929874367,-500.0,0.00039452,8]
[394758745,1763929874376,-500.0,0.00039452,8]
[394758746,1763929874385,-500.0,0.00039452,8]
[394758747,1763929874395,-151.0,0.00039452,28]
[394758748,1763929874404,-500.0,0.00039452,8]
[394758749,1763929874414,-500.0,0.00039452,8]
[394758750,1763929874423,-500.0,0.00039452,8]
[394758751,1763929874432,-494.60225846,0.00039452,8]
[394758752,1763929874441,-500.0,0.00039452,8]
[394758753,1763929874452,-509.91,0.00039452,8]
[394758754,1763929874461,-500.0,0.00039452,8]
[394758755,1763929874470,-614.28,0.00039452,8]
[394758756,1763929874479,-500.0,0.00039452,8]
[394758757,1763929874489,-500.0,0.00039452,8]
[394758758,1763929874499,-500.0,0.00039452,8]
[394758759,1763929874508,-500.0,0.00039452,8]
[394758760,1763929874517,-500.0,0.00039452,8]
[394758761,1763929874526,-500.0,0.00039452,8]
[394758762,1763929874536,-151.0,0.00039452,120]
[394758763,1763929874546,-742.47,0.00039452,8]
[394758764,1763929874561,-500.0,0.00039452,8]
[394758765,1763929874574,-645.85,0.00039452,8]
[394758766,1763929874583,-500.0,0.00039452,8]
[394758767,1763929874592,-500.0,0.00039452,8]
[394758768,1763929874602,-500.0,0.00039452,8]
[394758769,1763929874611,-500.0,0.00039452,8]
[394758770,1763929874622,-1700.95,0.00039452,8]
[394758771,1763929874632,-559.534793,0.00039452,8]
[394758772,1763929874642,-500.0,0.00039452,8]
[394758773,1763929874651,-500.0,0.00039452,8]
[394758774,1763929874661,-500.0,0.00039452,8]
[394758775,1763929874670,-500.0,0.00039452,8]
[394758776,1763929874679,-500.0,0.00039452,8]
[394758777,1763929874688,-500.0,0.00039452,8]
[394758778,1763929874700,-500.0,0.00039452,8]
[394758779,1763929874709,-500.0,0.00039452,8]
[394758780,1763929874719,-550.41,0.00039452,8]
[394758781,1763929874728,-500.0,0.00039452,8]
[394758782,1763929874738,-780.84,0.00039452,8]
[394758783,1763929874747,-500.0,0.00039452,8]
[394758784,1763929874757,-801.52,0.00039452,8]
[394758785,1763929874766,-257.20513605,0.00039452,8]
[394758786,1763929874776,-876.45,0.00039452,8]
[394758787,1763929874785,-500.0,0.00039452,8]
[394758788,1763929874795,-550.94493633,0.00039452,8]
[394758789,1763929874810,-1111.77,0.00039452,8]
[394758790,1763929874819,-500.0,0.00039452,8]
[394758791,1763929874828,-562.07,0.00039452,8]
[394758792,1763929874838,-580.02,0.00039452,8]
[394758793,1763929874847,-576.53118137,0.00039452,8]
[394758794,1763929874857,-1037.3,0.00039452,8]
[394758795,1763929874866,-500.0,0.00039452,8]
[394758796,1763929874875,-500.0,0.00039452,8]
[394758797,1763929874885,-507.54,0.00039452,8]
[394758798,1763929874895,-500.0,0.00039452,8]
[394758799,1763929874904,-500.0,0.00039452,8]
[394758800,1763929874914,-500.0,0.00039452,8]
[394758801,1763929874923,-655.94,0.00039452,8]
[394758802,1763929874936,-500.0,0.00039452,8]
[394758803,1763929874946,-515.32,0.00039452,8]
[394758804,1763929874956,-500.0,0.00039452,8]
[394758805,1763929874966,-500.0,0.00039452,8]
[394758806,1763929874975,-500.0,0.00039452,8]
[394758807,1763929874984,-500.0,0.00039452,8]
[394758808,1763929874995,-500.0,0.00039452,8]
[394758809,1763929875004,-166.24367234,0.00039452,8]
[394758810,1763929875014,-500.0,0.00039452,8]
[394758811,1763929875023,-500.0,0.00039452,8]
[394758812,1763929875033,-724.73,0.00039452,8]
[394758813,1763929875043,-387.2751695,0.00039452,8]
[394758814,1763929875052,-500.0,0.00039452,8]
[394758815,1763929875062,-699.98,0.00039452,8]
[394758816,1763929875071,-500.0,0.00039452,8]
[394758817,1763929875083,-500.0,0.00039452,8]
[394758818,1763929875093,-500.0,0.00039452,8]
[394758819,1763929875102,-500.0,0.00039452,8]
[394758820,1763929875111,-704.21,0.00039452,8]
[394758821,1763929875121,-1719.41,0.00039452,8]
[394758822,1763929875138,-500.0,0.00039452,8]
[394758823,1763929875147,-500.0,0.00039452,8]
[394758824,1763929875157,-500.0,0.00039452,8]
[394758825,1763929875167,-500.0,0.00039452,8]
[394758826,1763929875176,-500.0,0.00039452,8]
[394758827,1763929875185,-500.0,0.00039452,8]
[394758828,1763929875195,-500.0,0.00039452,8]
[394758829,1763929875204,-867.18,0.00039452,8]
[394758830,1763929875214,-742.38,0.00039452,8]
[394758831,1763929875223,-594.98111818,0.00039452,8]
[394758832,1763929875233,-500.0,0.00039452,8]